bitfinex-derivatives/quotes_ETHF0:USTF0_20240901
["timestamp","ask_amount","ask_price","bid_price","bid_amount"]
[1725192351636,3.2138573,2477.8,2477.6,4.4067]
[1725192352139,0.0060573,2477.8,2477.6,4.4067]
[1725192352323,0.0060573,2477.8,2477.6,4.81033]
[1725192353635,0.0060573,2477.8,2477.6,4.4067]
[1725192353937,0.0060573,2477.8,2477.6,0.3707]
[1725192354126,0.0060573,2477.8,2477.6,4.4067]
[1725192354936,0.0060573,2477.8,2477.6,4.81033]
[1725192355231,0.0060573,2477.8,2477.7,4.036]
[1725192355825,0.0060573,2477.8,2477.7,10.43962]
[1725192356026,0.0060573,2477.8,2477.7,13.64742]
[1725192358928,4.163,2478.4,2478.1,0.40355]
[1725192359130,0.40348,2478.6,2478.2,1.0887]
[1725192359436,4.38372807,2478.5,2478.2,1.0887]
[1725192360030,1.14044,2478.8,2478.3,0.40352]
[1725192360225,0.40346,2478.7,2478.3,0.40352]
[1725192360938,1.14044,2478.8,2478.3,0.40352]
[1725192361128,1.14044,2478.8,2478.4,0.4035]
[1725192361129,0.76474,2478.8,2478.4,0.4035]
[1725192361338,4.163,2478.9,2478.3,3.2078]
[1725192361537,0.4034,2479.1,2478.3,3.2078]
[1725192361729,0.7532,2479.2,2478.6,3.2078]
[1725192361936,0.7532,2479.2,2478.7,0.3679573]
[1725192362241,4.5495571,2479.1,2478.7,0.3679573]
[1725192362426,0.40343,2478.9,2478.7,0.3679573]
[1725192362629,0.40341,2479.0,2478.7,0.3679573]
[1725192363738,0.40342,2478.9,2478.7,0.3679573]
[1725192365542,4.5495571,2479.1,2478.7,0.3679573]
[1725192365543,0.40341,2479.0,2478.7,0.3679573]
[1725192365743,0.40342,2478.9,2478.7,0.3679573]
[1725192366137,4.5495571,2479.1,2478.7,0.3679573]
[1725192366138,0.40344,2478.8,2478.7,0.3679573]
[1725192366441,5.05933172,2478.8,2478.7,0.0060573]
[1725192366743,1.00864,2478.7,2477.9,3.2078]
[1725192367046,3.2078,2478.5,2477.9,3.2078]
[1725192367230,0.40354,2478.2,2477.9,3.2078]
[1725192367432,0.40353,2478.3,2477.9,3.2078]
[1725192367638,0.40354,2478.2,2477.9,3.2078]
[1725192367835,0.40354,2478.2,2477.8,0.0060573]
[1725192367836,0.40358,2478.0,2477.8,0.0060573]
[1725192368135,0.7462,2478.2,2477.8,0.0060573]
[1725192368136,0.40358,2477.9,2477.8,0.0060573]
[1725192369341,4.43958,2477.9,2477.8,0.0060573]
[1725192369535,9.06061892,2477.9,2477.8,0.0060573]
[1725192370339,12.26841892,2477.9,2477.8,0.0060573]
[1725192371141,8.23241892,2477.9,2477.8,0.0060573]
[1725192371342,1.0146773,2478.8,2477.8,7.2498573]
[1725192371343,3.2138573,2478.8,2477.8,7.2498573]
[1725192371536,0.3857,2478.6,2477.9,0.7718]
[1725192371841,0.40353,2478.3,2477.9,1.1426]
[1725192372042,0.40353,2478.2,2477.9,1.1426]
[1725192372348,3.9466428,2478.2,2477.9,1.1426]
[1725192372538,4.97013616,2478.4,2477.9,1.1426]
[1725192372841,0.40353,2478.3,2477.9,1.1426]
[1725192373045,5.05452364,2478.3,2477.9,0.7523]
[1725192373240,0.40353,2478.3,2477.9,0.7523]
[1725192373555,5.01169364,2478.4,2477.9,0.7523]
[1725192373556,0.40354,2478.2,2477.9,0.3708]
[1725192373738,0.77786,2478.1,2477.9,0.3708]
[1725192375034,0.40357,2478.0,2477.8,0.0060573]
[1725192375440,0.40358,2477.9,2477.8,0.0060573]
[1725192375645,0.79048,2478.0,2477.8,0.0060573]
[1725192376032,0.3743,2478.1,2477.8,0.0060573]
[1725192376246,3.61134,2478.2,2477.8,0.0060573]
[1725192376445,0.40358,2478.0,2477.8,0.0060573]
[1725192376648,0.40358,2477.9,2477.8,0.0060573]
[1725192377147,4.43958,2477.9,2477.8,0.0060573]
[1725192377335,9.03192844,2477.9,2477.8,0.0060573]
[1725192377644,9.41882844,2477.9,2477.8,0.0060573]
[1725192378843,18.42960146,2477.9,2477.1,6.3548]
[1725192379031,8.39360146,2477.9,2477.1,6.7367]
[1725192379236,0.40367,2477.4,2477.1,6.7367]
[1725192381746,0.0060573,2477.5,2477.1,6.7367]
[1725192381949,0.40369,2477.3,2477.1,3.5289]
[1725192382445,0.4037,2477.2,2477.1,3.5289]
[1725192383353,0.4037,2477.2,2477.1,3.147]
[1725192383850,4.4405,2477.2,2477.1,3.147]
[1725192384045,4.4405,2477.2,2477.0,0.0060573]
[1725192384046,0.40371,2477.1,2477.0,0.0060573]
[1725192384246,1.413,2477.1,2477.0,0.0060573]
[1725192384451,15.79519654,2477.1,2477.0,0.0060573]
[1725192385049,9.79519654,2477.1,2477.0,0.0060573]
[1725192385551,4.74910654,2477.1,2477.0,0.0060573]
[1725192386351,0.40371,2477.2,2477.0,0.0060573]
[1725192386752,4.66844843,2477.2,2477.0,0.0060573]
[1725192387052,0.40369,2477.3,2477.0,0.0060573]
[1725192387757,0.3845573,2477.5,2477.0,0.0060573]
[1725192388051,0.40369,2477.3,2477.0,0.0060573]
[1725192390145,0.4037,2477.2,2477.0,0.0060573]
[1725192390845,0.40369,2477.3,2477.0,0.0060573]
[1725192392044,4.67313656,2477.4,2477.0,0.0060573]
[1725192392045,0.4037,2477.2,2477.0,0.0060573]
[1725192393950,4.67313656,2477.4,2477.0,0.0060573]
[1725192394149,0.0060573,2477.5,2477.0,4.0428573]
[1725192394452,0.0060573,2477.5,2477.3,0.40368]
[1725192394659,0.0060573,2477.5,2477.4,1.14166]
[1725192395152,0.0060573,2477.5,2477.4,14.36846]
[1725192395352,0.0060573,2477.5,2477.4,8.36846]
[1725192396458,0.0060573,2477.5,2477.4,14.36846]
[1725192396850,0.0060573,2477.5,2477.4,8.36846]
[1725192397047,0.0060573,2477.5,2477.4,14.36846]
[1725192399155,0.0060573,2477.5,2477.4,8.36846]
[1725192399347,0.0060573,2477.5,2477.4,7.9648]
[1725192400062,0.0060573,2477.5,2477.4,8.36846]
[1725192404360,0.4097073,2477.5,2477.4,3.928]
[1725192404563,0.0060573,2477.5,2477.1,0.3542]
[1725192404757,0.0060573,2477.5,2477.0,0.0060573]
[1725192404758,3.2078,2477.3,2477.0,0.0060573]
[1725192404963,0.40371,2477.1,2477.0,0.0060573]
[1725192410567,0.4037,2477.2,2477.0,0.0060573]
[1725192410776,0.40369,2477.3,2477.0,0.0060573]
[1725192411065,0.4037,2477.2,2477.0,0.0060573]
[1725192411255,4.81939019,2477.4,2477.0,0.4097873]
[1725192411458,0.40367,2477.4,2477.0,0.4097873]
[1725192411659,4.9288573,2477.5,2477.0,0.0060573]
[1725192411660,0.40368,2477.3,2477.0,0.0060573]
[1725192412561,0.40368,2477.3,2477.0,0.4097873]
[1725192412764,0.40367,2477.4,2477.0,0.4097873]
[1725192412955,7.57361392,2477.5,2477.0,0.0060573]
[1725192413158,0.4037,2477.2,2477.0,0.0060573]
[1725192415257,0.0060573,2477.5,2477.1,4.0368]
[1725192415464,0.0060573,2477.5,2477.3,0.40367]
[1725192415665,0.0060573,2477.5,2477.4,4.29166]
[1725192415970,0.0060573,2477.5,2477.4,3.888]
[1725192416162,0.0060573,2477.5,2477.4,7.9248]
[1725192417172,0.0060573,2477.5,2477.4,8.32846]
[1725192421169,0.0060573,2477.5,2477.4,8.70777941]
[1725192421369,0.0060573,2477.5,2477.4,8.32846]
[1725192421561,0.0060573,2477.5,2477.4,8.70777941]
[1725192421758,0.0060573,2477.5,2477.4,8.32846]
[1725192421963,0.0060573,2477.5,2477.4,8.70777941]
[1725192422966,2.64475662,2478.1,2477.9,0.40358]
[1725192423171,3.38485662,2478.2,2477.9,0.40358]
[1725192423562,3.78838662,2478.2,2477.9,0.40358]
[1725192424055,3.38485662,2478.2,2477.9,0.40358]
[1725192424354,3.00145662,2478.2,2477.9,0.40358]
[1725192424556,2.64475662,2478.2,2478.1,0.40355]
[1725192424871,5.85861392,2478.3,2478.1,0.40355]
[1725192425168,5.85861392,2478.3,2478.0,0.40356]
[1725192425556,3.2138573,2478.3,2478.0,0.40356]
[1725192425763,3.2138573,2478.3,2477.9,0.3606]
[1725192425962,3.2138573,2478.3,2478.1,0.40355]
[1725192426472,3.2138573,2478.3,2478.0,0.79476]
[1725192428268,0.0060573,2478.3,2478.0,0.3912]
[1725192428472,0.0060573,2478.3,2478.1,0.40355]
[1725192428663,0.0060573,2478.3,2478.0,0.79476]
[1725192428971,0.0060573,2478.3,2478.1,0.40354]
[1725192429675,0.0060573,2478.3,2478.0,0.79476]
[1725192430058,0.0060573,2478.3,2478.1,0.40355]
[1725192430260,0.0060573,2478.3,2478.0,0.3912]
[1725192430462,0.0060573,2478.3,2478.1,0.40354]
[1725192430967,0.0060573,2478.3,2478.2,0.40353]
[1725192431476,0.0060573,2478.3,2478.1,3.61134]
[1725192432559,0.0060573,2478.3,2478.1,3.2078]
[1725192433669,0.0060573,2478.3,2478.1,3.61135]
[1725192433870,0.0060573,2478.3,2478.1,3.2078]
[1725192434268,0.4095773,2478.3,2478.1,3.2078]
[1725192434977,0.0060573,2478.3,2478.1,3.2078]
[1725192435465,0.3964573,2478.3,2478.1,3.2078]
[1725192436274,0.40353,2478.2,2478.1,3.2078]
[1725192436568,15.58897445,2478.2,2477.3,3.2078]
[1725192436776,0.40361,2477.8,2477.5,0.3542]
[1725192437071,11.55377445,2478.2,2477.5,0.3542]
[1725192437072,0.40362,2477.7,2477.5,0.3542]
[1725192437369,11.55377445,2478.2,2477.6,7.64742]
[1725192437370,0.40357,2478.0,2477.6,7.64742]
[1725192437580,6.97513445,2478.2,2477.6,7.64742]
[1725192437581,0.40353,2478.2,2477.7,0.40361]
[1725192437764,0.40355,2478.1,2477.8,0.3794]
[1725192437960,0.40355,2478.1,2477.9,0.3542]
[1725192439479,0.40354,2478.2,2477.9,0.3542]
[1725192439866,0.40356,2478.1,2477.9,0.3542]
[1725192441274,0.4095873,2478.3,2477.9,0.75778]
[1725192442173,0.0060573,2478.3,2478.0,0.40356]
[1725192442579,0.4095773,2478.3,2478.0,0.40356]
[1725192443381,0.0060573,2478.3,2478.2,0.40353]
[1725192443577,0.0060573,2478.3,2477.9,3.562]
[1725192443884,0.0060573,2478.3,2478.1,0.40354]
[1725192444082,0.0060573,2478.3,2477.9,3.562]
[1725192444083,0.0060573,2478.3,2478.2,0.78013]
[1725192444574,0.0060573,2478.3,2478.2,0.3766]
[1725192444783,6.85,2478.9,2478.2,0.3766]
[1725192444784,6.80775662,2479.0,2478.7,0.40345]
[1725192444970,3.2078,2479.2,2478.8,0.3693]
[1725192444971,3.04815662,2479.1,2478.8,0.3693]
[1725192445172,0.4034,2479.1,2478.8,0.7459]
[1725192445778,3.04811662,2479.3,2478.9,0.40341]
[1725192445975,2.64475662,2479.4,2478.8,0.7459]
[1725192446182,3.04809662,2479.4,2479.0,0.4034]
[1725192446578,3.2078,2479.6,2479.0,0.4034]
[1725192446579,1.14863,2479.5,2479.0,0.4034]
[1725192446772,0.40334,2479.4,2479.0,0.4034]
[1725192446979,0.40335,2479.3,2478.9,6.75821]
[1725192447181,0.40335,2479.3,2478.9,3.55041]
[1725192447772,0.40335,2479.3,2479.0,0.373]
[1725192448784,0.40337,2479.2,2479.0,0.373]
[1725192449781,0.40339,2479.1,2479.0,0.373]
[1725192449984,0.40339,2479.1,2479.0,3.146]
[1725192450285,0.7453,2479.5,2479.0,3.146]
[1725192450491,0.40336,2479.3,2479.0,3.146]
[1725192450783,0.40336,2479.3,2479.1,0.3913]
[1725192452382,0.40337,2479.2,2479.1,0.3913]
[1725192452779,0.40336,2479.3,2479.1,0.3913]
[1725192453384,0.40337,2479.2,2479.1,0.3913]
[1725192453779,0.40333,2479.5,2479.1,0.79468]
[1725192453992,0.40333,2479.5,2479.2,3.2078]
[1725192454194,0.40332,2479.6,2479.3,0.3596]
[1725192454375,0.40332,2479.5,2479.3,0.3596]
[1725192454682,0.40337,2479.2,2478.8,0.78003]
[1725192454879,4.48177278,2479.5,2478.9,0.3894]
[1725192454880,0.4034,2479.0,2478.9,0.3894]
[1725192455686,0.4034,2479.1,2478.9,0.3894]
[1725192455886,1.76077,2479.4,2478.9,0.79281]
[1725192455887,0.7524,2479.4,2478.9,0.79281]
[1725192456482,1.15575,2479.4,2478.9,4.00061]
[1725192456688,4.163,2479.5,2479.1,0.40338]
[1725192456689,4.56633,2479.5,2479.1,0.40338]
[1725192456892,0.0172,2479.6,2479.2,1.15356]
[1725192456893,0.42051,2479.6,2479.2,1.15356]
[1725192457190,0.0172,2479.6,2479.3,0.40335]
[1725192457489,0.0172,2479.6,2479.4,0.3894]
[1725192457697,0.0172,2479.6,2479.4,0.79274]
[1725192457990,0.0172,2479.6,2479.4,0.3894]
[1725192460483,0.0172,2479.6,2479.5,4.43612]
[1725192461088,0.0172,2479.6,2479.5,7.64392]
[1725192461480,0.7668,2480.3,2479.5,13.2406]
[1725192461781,0.7668,2480.3,2479.7,0.40328]
[1725192461985,0.7668,2480.3,2479.8,0.79287]
[1725192461986,0.4032,2480.3,2479.8,0.79287]
[1725192462186,0.4032,2480.3,2479.9,0.3736]
[1725192462695,0.40319,2480.3,2479.9,0.3736]
[1725192462986,0.55569968,2480.4,2479.7,0.3828]
[1725192463185,0.4033,2479.7,2479.5,6.7264]
[1725192463577,0.40328,2479.8,2479.5,6.7264]
[1725192463782,3.5721,2480.2,2479.5,6.7264]
[1725192463783,0.40323,2480.1,2479.6,0.4033]
[1725192463978,3.61102,2480.2,2479.7,0.40329]
[1725192464179,0.40322,2480.2,2479.7,0.40329]
[1725192464384,0.40322,2480.2,2479.8,3.5675]
[1725192464887,0.40323,2480.1,2479.8,3.5675]
[1725192466989,0.40324,2480.0,2479.8,3.5675]
[1725192467389,3.5662,2480.4,2479.7,3.145]
[1725192467390,0.40327,2479.9,2479.7,3.145]
[1725192467582,3.2078,2480.1,2479.7,3.145]
[1725192467583,0.40327,2479.8,2479.7,3.145]
[1725192467781,0.40331,2479.6,2479.5,3.2078]
[1725192468293,1.00815,2479.9,2479.2,3.8587]
[1725192468594,0.40333,2479.5,2479.2,3.8587]
[1725192469090,0.40331,2479.6,2479.2,3.8587]
[1725192469291,0.40331,2479.6,2479.3,0.3727]
[1725192469687,0.40334,2479.4,2479.3,0.3727]
[1725192469994,0.40335,2479.3,2479.2,3.8587]
[1725192470685,0.40335,2479.4,2479.2,3.8587]
[1725192471694,0.77043,2479.5,2479.2,3.8587]
[1725192471898,0.40333,2479.5,2479.2,3.8587]
[1725192472595,0.3882,2479.6,2479.2,3.8587]
[1725192472596,0.40334,2479.4,2479.2,3.8587]
[1725192474397,0.40333,2479.5,2479.2,3.8587]
[1725192474793,0.40334,2479.4,2479.2,3.8587]
[1725192475996,10.01555662,2480.1,2479.2,3.8587]
[1725192476196,0.40328,2479.8,2479.6,3.2078]
[1725192476395,0.40327,2479.9,2479.7,0.7506]
[1725192477287,0.40327,2479.8,2479.7,0.7506]
[1725192480484,0.40331,2479.6,2479.5,0.3649]
[1725192480687,0.40331,2479.6,2479.5,0.7377]
[1725192480991,0.40331,2479.6,2479.5,4.7705]
[1725192481198,1.00814,2480.0,2479.5,0.7377]
[1725192481199,0.4033,2479.7,2479.5,0.7377]
[1725192481988,0.40331,2479.6,2479.5,0.7377]
[1725192482389,0.4033,2479.7,2479.5,4.7705]
[1725192482596,0.4033,2479.7,2479.5,0.7377]
[1725192483397,0.40327,2479.9,2479.6,4.0328]
[1725192483597,0.40327,2479.9,2479.5,1.14101]
[1725192483805,0.40329,2479.7,2479.5,0.7377]
[1725192484221,0.40329,2479.7,2479.5,4.7705]
[1725192484394,0.40329,2479.7,2479.5,0.7377]
[1725192484700,0.40331,2479.6,2479.5,0.3649]
[1725192484899,0.40332,2479.5,2479.4,0.3758]
[1725192486199,0.40332,2479.6,2479.4,0.3758]
[1725192488293,0.4033,2479.7,2479.4,0.3758]
[1725192488494,0.40327,2479.9,2479.6,0.4033]
[1725192488694,0.40327,2479.9,2479.7,0.733]
[1725192488905,0.40326,2479.9,2479.8,0.3617]
[1725192489399,1.14406,2479.9,2479.8,0.3617]
[1725192489707,3.78881662,2479.9,2479.8,0.3617]
[1725192489897,1.14406,2479.9,2479.8,0.3617]
[1725192490209,3.78881662,2479.9,2479.8,0.3617]
[1725192490612,3.43411662,2479.9,2479.8,0.3617]
[1725192492499,7.06365662,2479.9,2479.4,0.3653]
[1725192492704,0.40332,2479.6,2479.4,0.3653]
[1725192494701,0.40332,2479.5,2479.4,0.3653]
[1725192497311,0.40332,2479.5,2479.4,0.74358512]
[1725192497704,0.40332,2479.5,2479.4,0.37827928]
[1725192497907,0.40334,2479.4,2479.3,7.1126]
[1725192498204,0.40334,2479.4,2479.3,7.49091668]
[1725192498402,0.40334,2479.4,2479.3,7.49091531]
[1725192498705,0.40334,2479.4,2479.3,7.1126]
[1725192499114,0.40334,2479.4,2479.3,7.4909153]
[1725192499412,0.40334,2479.4,2479.3,6.73112459]
[1725192499714,0.76344,2479.4,2479.3,6.73112459]
[1725192499909,0.76344,2479.4,2479.3,6.3528]
[1725192500215,0.76344,2479.4,2479.3,6.73113485]
[1725192502408,0.76344,2479.4,2479.3,6.3528]
[1725192502608,3.40819662,2479.4,2479.3,6.7311842]
[1725192504002,0.76344,2479.4,2479.3,6.7311842]
[1725192504201,3.40819662,2479.4,2479.3,6.7311842]
[1725192504611,0.40334,2479.4,2479.3,6.7311842]
[1725192506617,2.64475662,2479.5,2479.3,7.1345342]
[1725192506808,2.64475662,2479.5,2479.4,0.7514]
[1725192507008,2.64475662,2479.5,2479.4,1.49803689]
[1725192507209,2.64475662,2479.5,2479.4,1.1197]
[1725192507417,2.64475662,2479.5,2479.4,1.49803173]
[1725192510222,3.04807662,2479.5,2479.4,1.49803832]
[1725192510722,0.40332,2479.5,2479.4,1.10823832]
[1725192511028,3.04640586,2479.5,2479.4,1.10823832]
[1725192511321,3.04639641,2479.5,2479.4,1.10823832]
[1725192511512,0.40332,2479.5,2479.4,1.10823832]
[1725192512418,0.40332,2479.6,2479.4,1.10823832]
[1725192512617,0.40332,2479.6,2479.5,0.37833832]
[1725192513226,4.43612,2479.6,2479.5,0.37833832]
[1725192513414,4.43612,2479.6,2479.5,0.378355]
[1725192513922,0.40332,2479.6,2479.5,0.378355]
[1725192515312,0.40332,2479.5,2479.4,0.7299]
[1725192515523,0.40332,2479.5,2479.4,0.37836357]
[1725192515723,0.40344,2478.8,2478.7,0.0060573]
[1725192515926,0.40344,2478.8,2478.7,0.38465115]
[1725192516226,3.04819936,2478.8,2478.7,0.38465115]
[1725192516417,3.43088579,2478.8,2478.7,0.38465115]
[1725192516809,0.78734,2478.8,2478.7,0.38465115]
[1725192517013,0.78734,2478.8,2478.7,0.0060573]
[1725192517218,0.78734,2478.8,2478.7,0.38486299]
[1725192517423,3.42971131,2478.8,2478.7,0.0060573]
[1725192518929,7.46411131,2478.8,2478.7,0.0060573]
[1725192519117,7.46321513,2478.8,2478.7,0.0060573]
[1725192519714,0.40344,2478.8,2478.7,0.0060573]
[1725192520319,2.64147513,2478.9,2478.7,3.2138573]
[1725192520517,3.04488513,2479.0,2478.7,3.2138573]
[1725192520720,3.04488513,2479.0,2478.8,0.3565]
[1725192521029,7.31994642,2479.0,2478.8,0.3565]
[1725192521325,7.31994642,2479.0,2478.9,0.3891]
[1725192521746,11.35354642,2479.0,2478.9,0.3891]
[1725192522027,6.91653642,2479.0,2478.9,4.4227]
[1725192522324,3.53551123,2479.3,2478.9,0.3891]
[1725192522325,2.64147513,2479.1,2478.9,0.3891]
[1725192522719,6.67507513,2479.0,2478.7,0.0060573]
[1725192522913,0.40344,2478.8,2478.7,0.0060573]
[1725192523313,5.17364,2478.8,2478.7,0.0060573]
[1725192527829,0.40344,2478.8,2478.7,0.0060573]
[1725192531922,0.78763,2478.9,2478.7,0.0060573]
[1725192532126,0.40341,2479.0,2478.7,0.0060573]
[1725192533431,0.40342,2478.9,2478.7,0.0060573]
[1725192534230,0.40344,2478.8,2478.7,0.0060573]
[1725192534533,0.40343,2478.9,2478.7,0.0060573]
[1725192535425,0.40344,2478.8,2478.7,0.0060573]
[1725192537236,0.4035,2478.4,2478.3,3.2078]
[1725192537429,0.40349,2478.5,2478.3,3.2078]
[1725192538125,0.4035,2478.4,2478.3,3.2078]
[1725192540329,0.4035,2478.4,2478.2,0.3663]
[1725192540543,0.40352,2478.3,2478.2,0.3663]
[1725192540844,0.75942,2478.3,2478.2,0.3663]
[1725192542541,0.40353,2478.2,2478.1,0.0060573]
[1725192542740,1.15053,2478.2,2478.1,0.0060573]
[1725192542934,0.40353,2478.2,2478.1,0.0060573]
[1725192543236,3.65019513,2478.5,2478.1,4.0412573]
[1725192543237,0.40349,2478.5,2478.1,4.0412573]
[1725192543446,0.40349,2478.5,2478.2,3.577]
[1725192543635,0.4035,2478.4,2478.3,0.3893]
[1725192544137,0.0060573,2478.6,2478.3,0.3893]
[1725192544441,0.40349,2478.5,2478.4,0.3788]
[1725192545842,0.4095273,2478.6,2478.4,0.3788]
[1725192546336,0.40349,2478.5,2478.4,0.3788]
[1725192546744,0.0060573,2478.6,2478.4,0.3788]
[1725192547041,0.0060573,2478.6,2478.4,4.81669]
[1725192547340,0.0060573,2478.6,2478.5,0.40349]
[1725192547539,0.0060573,2478.6,2478.5,7.64569]
[1725192549239,0.0060573,2478.6,2478.5,3.61129]
[1725192549643,0.0060573,2478.6,2478.5,10.79069]
[1725192552136,0.0060573,2478.6,2478.5,6.75629]
[1725192552443,0.0060573,2478.6,2478.5,10.79069]
[1725192557150,0.0060573,2478.6,2478.5,11.16964502]
[1725192557336,0.0060573,2478.6,2478.5,7.13524502]
[1725192557643,0.0060573,2478.6,2478.5,6.75629]
[1725192558344,0.0060573,2478.6,2478.5,7.13524757]
[1725192558550,0.0060573,2478.6,2478.5,6.75629]
[1725192558751,0.0060573,2478.6,2478.5,10.79069]
[1725192559259,0.0060573,2478.6,2478.5,11.16968366]
[1725192559946,0.0060573,2478.6,2478.5,11.16968096]
[1725192560146,0.0060573,2478.6,2478.5,7.13528096]
[1725192561143,2.64147513,2479.1,2478.5,16.97213443]
[1725192561338,2.64147513,2479.2,2479.0,0.4034]
[1725192561544,2.64147513,2479.2,2479.1,0.7563]
[1725192561940,2.64147513,2479.2,2479.1,5.19329]
[1725192562250,2.64147513,2479.3,2479.1,1.13513673]
[1725192562440,0.40337,2479.2,2479.1,0.7563]
[1725192562641,0.40337,2479.2,2479.1,0.3822]
[1725192562945,0.76667,2479.2,2479.1,0.3822]
[1725192563746,0.3633,2479.2,2479.0,0.37898616]
[1725192563942,3.00477513,2479.2,2479.0,3.145]
[1725192564948,3.00477513,2479.2,2478.7,0.3741]
[1725192565153,0.40342,2478.9,2478.8,0.37912892]
[1725192565448,0.3701,2479.1,2478.7,0.3741]
[1725192565449,0.40344,2478.8,2478.7,0.3741]
[1725192565748,0.79254,2478.8,2478.7,0.75326834]
[1725192566766,0.79254,2478.8,2478.7,0.3741]
[1725192566948,0.79254,2478.8,2478.7,0.37921273]
[1725192567150,0.40345,2478.7,2478.6,3.5114]
[1725192567342,0.79254,2478.8,2478.6,3.5114]
[1725192568547,0.40345,2478.7,2478.6,3.5114]
[1725192568743,0.3891,2478.8,2478.6,3.89071533]
[1725192568744,0.79255,2478.8,2478.6,3.89071533]
[1725192568943,0.79255,2478.8,2478.7,0.37931533]
[1725192570352,0.79255,2478.8,2478.6,3.5114]
[1725192571454,0.3891,2478.8,2478.6,3.5114]
[1725192571648,0.3891,2478.8,2478.7,0.37927873]
[1725192571848,0.79254,2478.8,2478.7,0.37927873]
[1725192572060,0.79254,2478.8,2478.6,3.5114]
[1725192573052,0.79254,2478.8,2478.7,0.37927687]
[1725192573256,0.79254,2478.8,2478.6,3.5114]
[1725192573643,0.79254,2478.8,2478.7,0.37927986]
[1725192573842,0.79254,2478.8,2478.6,3.5114]
[1725192574044,0.40344,2478.8,2478.6,3.5114]
[1725192574653,0.40345,2478.7,2478.6,3.145]
[1725192574852,0.40345,2478.7,2478.6,3.5243251]
[1725192575151,0.40345,2478.7,2478.6,3.145]
[1725192576253,3.38647513,2478.9,2478.6,3.145]
[1725192576450,3.41130513,2478.9,2478.6,3.54847]
[1725192576646,3.41130513,2478.9,2478.7,0.3655]
[1725192577061,0.40344,2478.8,2478.7,0.3655]
[1725192577949,3.41130513,2478.9,2478.7,0.3655]
[1725192578651,0.40344,2478.8,2478.7,0.3655]
[1725192580157,0.40345,2478.7,2478.6,3.145]
[1725192581562,0.78725,2478.7,2478.6,3.145]
[1725192586149,4.82165,2478.7,2478.6,3.145]
[1725192587248,0.40347,2478.6,2478.5,3.2078]
[1725192587452,7.07934513,2478.6,2478.5,3.2078]
[1725192588258,7.08012262,2478.6,2478.5,3.2078]
[1725192588855,4.43787,2478.6,2478.5,3.2078]
[1725192589055,7.08009715,2478.6,2478.5,3.2078]
[1725192589359,4.43787,2478.6,2478.5,3.2078]
[1725192589761,0.4035,2478.4,2478.3,0.3808]
[1725192589958,0.4035,2478.4,2478.3,0.76061206]
[1725192590152,0.4035,2478.4,2478.3,3.96841206]
[1725192590356,0.4035,2478.4,2478.3,0.76061206]
[1725192590856,3.04626261,2478.4,2478.3,0.76061206]
[1725192593268,0.4035,2478.4,2478.3,0.76061206]
[1725192597067,0.4035,2478.4,2478.3,0.76067795]
[1725192597459,0.4035,2478.4,2478.3,0.76067301]
[1725192599871,0.40349,2478.5,2478.3,3.96847301]
[1725192600069,0.40349,2478.5,2478.4,0.37987301]
[1725192600274,0.40349,2478.5,2478.4,0.37988791]
[1725192600669,2.65856261,2478.6,2478.4,0.37988791]
[1725192600862,0.0158,2478.6,2478.5,0.7833269]
[1725192601272,0.0158,2478.6,2478.5,0.3798369]
[1725192601465,0.0158,2478.6,2478.5,4.4142369]
[1725192601772,0.0158,2478.6,2478.5,0.7631369]
[1725192602865,3.04621261,2478.7,2478.5,0.7631369]
[1725192603071,3.04621261,2478.7,2478.6,0.3553]
[1725192603273,0.40349,2478.5,2478.3,3.5886]
[1725192603466,0.40349,2478.5,2478.4,0.73521524]
[1725192604174,0.40349,2478.5,2478.4,0.3553]
[1725192604366,2.64276261,2478.6,2478.4,4.3897]
[1725192604562,2.64276261,2478.7,2478.5,0.37991874]
[1725192604776,4.9243,2479.1,2478.6,0.37985614]
[1725192604777,3.04619261,2478.9,2478.6,0.37985614]
[1725192605075,2.64276261,2478.8,2478.7,0.3836]
[1725192605965,3.04619261,2478.9,2478.7,0.3836]
[1725192606172,3.04619261,2478.9,2478.8,0.3596]
[1725192606373,2.64151921,2478.9,2478.8,0.7389]
[1725192607074,2.64158811,2478.9,2478.8,0.7389]
[1725192607275,0.40341,2479.0,2478.8,0.7389]
[1725192607676,2.64160111,2478.9,2478.8,0.7389]
[1725192607872,0.40341,2479.0,2478.8,0.7389]
[1725192608078,2.64156825,2478.9,2478.8,0.7389]
[1725192608383,0.40341,2479.0,2478.8,0.7389]
[1725192610676,0.40342,2478.9,2478.8,0.7389]
[1725192611472,3.57710123,2479.1,2478.8,0.7389]
[1725192611677,3.17371123,2479.3,2478.9,3.58766717]
[1725192611878,2.64281836,2479.2,2479.0,0.78326717]
[1725192612078,2.64281836,2479.3,2479.1,0.73526717]
[1725192612284,2.64281836,2479.3,2479.2,1.12646717]
[1725192612581,2.64281836,2479.3,2479.2,1.12647346]
[1725192613282,2.64281836,2479.3,2479.2,1.12641819]
[1725192613674,2.64281836,2479.3,2479.2,0.7466]
[1725192613874,2.64281836,2479.3,2479.2,1.12641912]
[1725192614082,3.04615836,2479.4,2479.2,0.7466]
[1725192614279,2.64281836,2479.5,2479.3,4.81671805]
[1725192614575,3.57699123,2479.8,2479.4,0.37976805]
[1725192614576,2.64281836,2479.7,2479.4,0.37976805]
[1725192614775,2.64281836,2479.7,2479.5,0.3841]
[1725192614978,2.64281836,2479.7,2479.6,0.3817]
[1725192615177,2.64281836,2479.7,2479.6,0.7508]
[1725192616187,3.04609836,2479.8,2479.6,0.7508]
[1725192616580,0.40329,2479.7,2479.6,0.7508]
[1725192616885,3.04610836,2479.7,2479.6,0.7508]
[1725192617089,0.40329,2479.7,2479.6,0.7508]
[1725192618474,3.04609836,2479.8,2479.6,0.7508]
[1725192618672,2.64281836,2479.8,2479.6,0.7508]
[1725192618874,2.64281836,2479.9,2479.6,0.7508]
[1725192619311,3.04607836,2479.9,2479.6,0.7508]
[1725192619486,0.40328,2479.8,2479.6,0.7508]
[1725192620384,0.40329,2479.7,2479.3,0.4094073]